[Event "Schack-SM 2022: Junior-SM"]
[Site "Fyrishov, Idrottsgatan 2, Uppsala, Sweden"]
[Date "2022.07.05"]
[Round "4.2"]
[White "Soderstrom, Adrian"]
[Black "Wernberg, Hugo"]
[Result "1/2-1/2"]
[TimeControl "90 minutes for 40 moves + 30 minutes for the rest of the game + 30 seconds per move from move one."]
[WhiteTitle "CM"]
[BlackTitle "FM"]
[WhiteFideId "1745786"]
[BlackFideId "1737511"]
[WhiteElo "2292"]
[BlackElo "2316"]

1. d4 {[%clk 01:30:54]} {[%emt 00:00:05]} Nf6 {[%clk 01:30:50]} {[%emt
00:00:10]} 2. c4 {[%clk 01:31:16]} {[%emt 00:00:09]} e6 {[%clk 01:31:06]}
{[%emt 00:00:14]} 3. Nf3 {[%clk 01:31:28]} {[%emt 00:00:15]} b6 {[%clk
01:31:08]} {[%emt 00:00:30]} 4. g3 {[%clk 01:31:39]} {[%emt 00:00:18]} Bb4+
{[%clk 01:30:54]} {[%emt 00:00:45]} 5. Nbd2 {[%clk 01:30:04]} {[%emt 00:02:05]}
Bb7 {[%clk 01:30:12]} {[%emt 00:01:12]} 6. Bg2 {[%clk 01:30:09]} {[%emt
00:00:25]} O-O {[%clk 01:29:39]} {[%emt 00:01:03]} 7. O-O {[%clk 01:30:21]}
{[%emt 00:00:18]} d5 {[%clk 01:28:50]} {[%emt 00:01:19]} 8. Ne5 {[%clk
01:12:40]} {[%emt 00:18:11]} Nfd7 {[%clk 01:24:29]} {[%emt 00:04:51]} 9. Ndf3
{[%clk 01:09:38]} {[%emt 00:03:31]} dxc4 {[%clk 01:11:07]} {[%emt 00:13:53]} 10.
Qc2 {[%clk 01:06:15]} {[%emt 00:03:53]} g6 {[%clk 00:54:03]} {[%emt 00:17:34]}
11. Nxc4 {[%clk 00:59:22]} {[%emt 00:07:23]} Be7 {[%clk 00:45:26]} {[%emt
00:09:07]} 12. Rd1 {[%clk 00:56:29]} {[%emt 00:03:23]} Bf6 {[%clk 00:37:58]}
{[%emt 00:07:59]} 13. Bf4 {[%clk 00:55:09]} {[%emt 00:01:49]} Qe7 {[%clk
00:25:07]} {[%emt 00:13:21]} 14. Rac1 {[%clk 00:50:00]} {[%emt 00:05:39]} Na6
{[%clk 00:24:12]} {[%emt 00:01:26]} 15. Qa4 {[%clk 00:47:22]} {[%emt 00:03:07]}
g5 {[%clk 00:08:07]} {[%emt 00:16:35]} 16. Be3 {[%clk 00:33:39]} {[%emt
00:14:13]} Nab8 {[%clk 00:03:48]} {[%emt 00:04:50]} 17. Nce5 {[%clk 00:31:57]}
{[%emt 00:02:10]} c5 {[%clk 00:02:09]} {[%emt 00:02:10]} 18. Nxd7 {[%clk
00:16:44]} {[%emt 00:15:43]} Nxd7 {[%clk 00:02:04]} {[%emt 00:00:36]} 19. dxc5
{[%clk 00:09:16]} {[%emt 00:07:58]} Nxc5 {[%clk 00:02:26]} {[%emt 00:00:07]} 20.
Qg4 {[%clk 00:06:25]} {[%emt 00:03:20]} Bxf3 {[%clk 00:02:34]} {[%emt
00:00:23]} 21. exf3 {[%clk 00:06:50]} {[%emt 00:00:06]} Rad8 {[%clk 00:01:09]}
{[%emt 00:01:54]} 22. f4 {[%clk 00:07:19]} {[%emt 00:00:01]} Bxb2 {[%clk
00:01:21]} {[%emt 00:00:18]} 23. Rb1 {[%clk 00:07:32]} {[%emt 00:00:17]} Bg7
{[%clk 00:01:15]} {[%emt 00:00:36]} 24. fxg5 {[%clk 00:08:00]} {[%emt
00:00:02]} Rxd1+ {[%clk 00:01:04]} {[%emt 00:00:41]} 25. Rxd1 {[%clk 00:08:29]}
{[%emt 00:00:01]} Rd8 {[%clk 00:01:19]} {[%emt 00:00:15]} 26. h4 {[%clk
00:08:39]} {[%emt 00:00:19]} Rxd1+ {[%clk 00:01:31]} {[%emt 00:00:18]} 27. Qxd1
{[%clk 00:09:07]} {[%emt 00:00:03]} Qd7 {[%clk 00:01:07]} {[%emt 00:00:54]} 28.
Qf3 {[%clk 00:08:18]} {[%emt 00:01:19]} Qc8 {[%clk 00:00:32]} {[%emt 00:01:05]}
29. h5 {[%clk 00:08:35]} {[%emt 00:00:13]} Nd3 {[%clk 00:00:41]} {[%emt
00:00:21]} 30. Qe4 {[%clk 00:08:35]} {[%emt 00:00:30]} Nc5 {[%clk 00:00:36]}
{[%emt 00:00:35]} 31. Qg4 {[%clk 00:09:02]} {[%emt 00:00:03]} Qd7 {[%clk
00:00:48]} {[%emt 00:00:18]} 32. g6 {[%clk 00:08:01]} {[%emt 00:01:32]} hxg6
{[%clk 00:00:48]} {[%emt 00:00:29]} 33. hxg6 {[%clk 00:08:29]} {[%emt
00:00:02]} fxg6 {[%clk 00:01:01]} {[%emt 00:00:17]} 34. Qxg6 {[%clk 00:08:57]}
{[%emt 00:00:03]} Qf7 {[%clk 00:01:17]} {[%emt 00:00:13]} 35. Qb1 {[%clk
00:08:37]} {[%emt 00:00:49]} Qd7 {[%clk 00:00:48]} {[%emt 00:01:00]} 36. Bh3
{[%clk 00:08:28]} {[%emt 00:00:38]} Kf7 {[%clk 00:00:47]} {[%emt 00:00:32]} 37.
Bg4 {[%clk 00:07:23]} {[%emt 00:01:35]} Qd3 {[%clk 00:00:43]} {[%emt 00:00:34]}
38. Qc1 {[%clk 00:07:51]} {[%emt 00:00:03]} Qd5 {[%clk 00:00:49]} {[%emt
00:00:24]} 39. a3 {[%clk 00:01:24]} {[%emt 00:06:57]} Qe5 {[%clk 00:01:00]}
{[%emt 00:00:18]} 40. Kh2 {[%clk 00:00:54]} {[%emt 00:00:59]} Qd5 {[%clk
00:00:38]} {[%emt 00:00:53]} 41. Qf1 {[%clk 00:29:02]} {[%emt 00:02:21]} Bd4
{[%clk 00:28:44]} {[%emt 00:02:25]} 42. Qc1 {[%clk 00:19:58]} {[%emt 00:09:33]}
Qe5 {[%clk 00:19:46]} {[%emt 00:09:28]} 43. Bxd4 {[%clk 00:18:05]} {[%emt
00:02:23]} Qxd4 {[%clk 00:20:05]} {[%emt 00:00:11]} 44. Bh5+ {[%clk 00:18:22]}
{[%emt 00:00:13]} Ke7 {[%clk 00:18:43]} {[%emt 00:01:53]} 45. Qc2 {[%clk
00:15:55]} {[%emt 00:02:57]} Nd3 {[%clk 00:11:27]} {[%emt 00:07:46]} 46. Qc7+
{[%clk 00:14:55]} {[%emt 00:01:29]} Qd7 {[%clk 00:10:12]} {[%emt 00:01:46]} 47.
Qc3 {[%clk 00:14:46]} {[%emt 00:00:38]} Qd5 {[%clk 00:06:18]} {[%emt 00:04:25]}
48. Qg7+ {[%clk 00:14:59]} {[%emt 00:00:16]} Kd6 {[%clk 00:04:07]} {[%emt
00:02:42]} 49. Qf8+ {[%clk 00:14:07]} {[%emt 00:01:22]} Kc7 {[%clk 00:04:04]}
{[%emt 00:00:33]} 50. Bf3 {[%clk 00:08:36]} {[%emt 00:06:00]} Qd4 {[%clk
00:02:23]} {[%emt 00:02:12]} 51. Qf7+ {[%clk 00:05:56]} {[%emt 00:03:10]} Kd6
{[%clk 00:01:59]} {[%emt 00:00:54]} 52. Qf8+ {[%clk 00:05:59]} {[%emt
00:00:28]} Kd7 {[%clk 00:01:54]} {[%emt 00:00:34]} 53. Qf7+ {[%clk 00:04:45]}
{[%emt 00:01:44]} Kd6 {[%clk 00:02:19]} {[%emt 00:00:06]} 54. Qf8+ {[%clk
00:00:48]} 1/2-1/2

[Event "Schack-SM 2022: Junior-SM"]
[Site "Fyrishov, Idrottsgatan 2, Uppsala, Sweden"]
[Date "2022.07.04"]
[Round "3.1"]
[White "Wernberg, Hugo"]
[Black "Olsson, William"]
[Result "0-1"]
[TimeControl "90 minutes for 40 moves + 30 minutes for the rest of the game + 30 seconds per move from move one."]
[WhiteTitle "FM"]
[BlackTitle "FM"]
[WhiteFideId "1737511"]
[BlackFideId "1741721"]
[WhiteElo "2316"]
[BlackElo "2284"]

1. e4 {[%clk 01:30:57]} {[%emt 00:00:02]} c5 {[%clk 01:30:56]} {[%emt
00:00:05]} 2. Nf3 {[%clk 01:31:21]} {[%emt 00:00:05]} d6 {[%clk 01:31:23]}
{[%emt 00:00:03]} 3. Bb5+ {[%clk 01:31:45]} {[%emt 00:00:07]} Nd7 {[%clk
01:31:48]} {[%emt 00:00:05]} 4. Ba4 {[%clk 01:32:09]} {[%emt 00:00:06]} Ngf6
{[%clk 01:32:06]} {[%emt 00:00:11]} 5. O-O {[%clk 01:32:32]} {[%emt 00:00:07]}
e5 {[%clk 01:31:56]} {[%emt 00:00:41]} 6. d3 {[%clk 01:31:57]} {[%emt
00:01:05]} Be7 {[%clk 01:32:19]} {[%emt 00:00:06]} 7. Re1 {[%clk 01:15:53]}
{[%emt 00:16:34]} O-O {[%clk 01:31:18]} {[%emt 00:01:31]} 8. c3 {[%clk
01:14:59]} {[%emt 00:01:25]} Rb8 {[%clk 01:30:02]} {[%emt 00:01:46]} 9. Bc2
{[%clk 01:11:48]} {[%emt 00:03:41]} b5 {[%clk 01:29:25]} {[%emt 00:01:07]} 10.
Nbd2 {[%clk 01:09:23]} {[%emt 00:02:54]} Re8 {[%clk 01:26:58]} {[%emt
00:02:56]} 11. Nf1 {[%clk 01:07:26]} {[%emt 00:02:29]} Bf8 {[%clk 01:26:35]}
{[%emt 00:00:52]} 12. h3 {[%clk 00:58:43]} {[%emt 00:09:14]} Bb7 {[%clk
01:21:06]} {[%emt 00:05:58]} 13. Ng3 {[%clk 00:56:45]} {[%emt 00:02:29]} g6
{[%clk 01:16:14]} {[%emt 00:05:21]} 14. b3 {[%clk 00:44:35]} {[%emt 00:12:40]}
Bg7 {[%clk 01:09:24]} {[%emt 00:07:20]} 15. Bb2 {[%clk 00:38:02]} {[%emt
00:07:04]} Qc7 {[%clk 01:00:13]} {[%emt 00:09:40]} 16. d4 {[%clk 00:32:06]}
{[%emt 00:06:27]} a5 {[%clk 00:53:25]} {[%emt 00:07:18]} 17. dxe5 {[%clk
00:24:34]} {[%emt 00:08:01]} dxe5 {[%clk 00:52:25]} {[%emt 00:01:31]} 18. Qe2
{[%clk 00:22:02]} {[%emt 00:03:02]} Bc6 {[%clk 00:49:53]} {[%emt 00:03:02]} 19.
Red1 {[%clk 00:19:38]} {[%emt 00:02:53]} Nf8 {[%clk 00:48:23]} {[%emt
00:02:00]} 20. c4 {[%clk 00:15:40]} {[%emt 00:04:28]} N6d7 {[%clk 00:46:32]}
{[%emt 00:02:21]} 21. cxb5 {[%clk 00:15:19]} {[%emt 00:00:52]} Bxb5 {[%clk
00:46:42]} {[%emt 00:00:20]} 22. Bd3 {[%clk 00:14:49]} {[%emt 00:01:00]} Bc6
{[%clk 00:47:01]} {[%emt 00:00:10]} 23. Bc4 {[%clk 00:12:35]} {[%emt 00:02:44]}
Nb6 {[%clk 00:44:01]} {[%emt 00:03:30]} 24. Ba3 {[%clk 00:09:59]} {[%emt
00:03:06]} Nxc4 {[%clk 00:36:48]} {[%emt 00:07:43]} 25. Qxc4 {[%clk 00:09:54]}
{[%emt 00:00:35]} Ne6 {[%clk 00:36:59]} {[%emt 00:00:19]} 26. Rac1 {[%clk
00:09:32]} {[%emt 00:00:52]} Bf8 {[%clk 00:32:59]} {[%emt 00:04:31]} 27. Qc3
{[%clk 00:07:49]} {[%emt 00:02:13]} f6 {[%clk 00:32:38]} {[%emt 00:00:51]} 28.
Nd2 {[%clk 00:07:13]} {[%emt 00:01:06]} Kg7 {[%clk 00:30:29]} {[%emt 00:02:39]}
29. Nc4 {[%clk 00:07:00]} {[%emt 00:00:43]} Ra8 {[%clk 00:28:50]} {[%emt
00:02:09]} 30. Ne3 {[%clk 00:06:31]} {[%emt 00:00:59]} Qb7 {[%clk 00:27:15]}
{[%emt 00:02:02]} 31. f3 {[%clk 00:05:11]} {[%emt 00:01:52]} Red8 {[%clk
00:26:30]} {[%emt 00:01:14]} 32. Rxd8 {[%clk 00:04:40]} {[%emt 00:01:02]} Rxd8
{[%clk 00:26:54]} {[%emt 00:00:06]} 33. Nc4 {[%clk 00:04:24]} {[%emt 00:00:47]}
a4 {[%clk 00:26:17]} {[%emt 00:01:07]} 34. Na5 {[%clk 00:04:08]} {[%emt
00:00:46]} Qb6 {[%clk 00:26:29]} {[%emt 00:00:18]} 35. Nxc6 {[%clk 00:04:12]}
{[%emt 00:00:26]} Qxc6 {[%clk 00:26:02]} {[%emt 00:00:57]} 36. b4 {[%clk
00:04:11]} {[%emt 00:00:31]} c4 {[%clk 00:20:54]} {[%emt 00:05:37]} 37. Qxc4
{[%clk 00:01:43]} {[%emt 00:02:58]} Rd1+ {[%clk 00:21:15]} {[%emt 00:00:09]} 38.
Nf1 {[%clk 00:00:42]} {[%emt 00:01:31]} Qxc4 {[%clk 00:17:23]} {[%emt
00:04:22]} 39. Rxc4 {[%clk 00:01:05]} {[%emt 00:00:08]} Ra1 {[%clk 00:17:39]}
{[%emt 00:00:14]} 40. Rc2 {[%clk 00:00:33]} {[%emt 00:01:02]} Nd4 {[%clk
00:17:44]} {[%emt 00:00:24]} 41. Rc7+ {[%clk 00:08:49]} {[%emt 00:22:15]} Kg8
{[%clk 00:48:03]} {[%emt 00:00:10]} 42. Rc8 {[%clk 00:07:06]} {[%emt 00:02:13]}
Rxa2 {[%clk 00:48:09]} {[%emt 00:00:25]} 43. Bc1 {[%clk 00:07:19]} {[%emt
00:00:16]} Ne2+ {[%clk 00:46:32]} {[%emt 00:02:07]} 44. Kh2 {[%clk 00:07:26]}
{[%emt 00:00:23]} Nxc1 {[%clk 00:46:35]} {[%emt 00:00:27]} 45. Rxc1 {[%clk
00:07:44]} {[%emt 00:00:12]} Bxb4 {[%clk 00:46:35]} {[%emt 00:00:31]} 46. Ne3
{[%clk 00:07:13]} {[%emt 00:01:00]} Bd2 {[%emt 00:04:35]} 47. Rc8+ {[%clk
00:06:04]} Kf7 {[%clk 00:44:34]} {[%emt 00:00:05]} 48. Nd5 {[%clk 00:04:33]}
{[%emt 00:02:00]} a3 {[%clk 00:44:28]} {[%emt 00:00:37]} 49. Rc7+ {[%clk
00:02:52]} {[%emt 00:02:11]} Ke6 {[%clk 00:44:37]} {[%emt 00:00:20]} 50. Ra7
{[%clk 00:02:37]} {[%emt 00:00:46]} Kd6 {[%clk 00:44:27]} {[%emt 00:00:39]} 51.
Ra6+ {[%clk 00:01:39]} {[%emt 00:01:28]} Kc5 {[%clk 00:44:46]} {[%emt
00:00:11]} 52. Nxf6 {[%clk 00:01:34]} {[%emt 00:00:35]} Kb5 {[%clk 00:44:58]}
{[%emt 00:00:19]} 53. Ra8 {[%clk 00:01:40]} {[%emt 00:00:23]} Bf4+ {[%clk
00:41:22]} {[%emt 00:04:03]} 54. Kg1 {[%clk 00:02:03]} {[%emt 00:00:10]} Be3+
{[%clk 00:41:37]} {[%emt 00:00:15]} 55. Kh2 {[%clk 00:02:06]} {[%emt 00:00:27]}
Bf4+ {[%clk 00:39:55]} {[%emt 00:02:13]} 56. Kg1 {[%clk 00:02:27]} {[%emt
00:00:09]} Bg3 {[%clk 00:40:20]} {[%emt 00:00:04]} 57. Rb8+ {[%clk 00:02:38]}
{[%emt 00:00:19]} Kc4 {[%clk 00:39:46]} {[%emt 00:01:03]} 58. Rc8+ {[%clk
00:02:28]} {[%emt 00:00:41]} Kd3 {[%clk 00:40:06]} {[%emt 00:00:10]} 59. Rc1
{[%clk 00:02:46]} {[%emt 00:00:12]} Kd2 {[%clk 00:39:52]} {[%emt 00:00:44]} 60.
Rf1 {[%clk 00:02:35]} {[%emt 00:00:41]} Rc2 {[%clk 00:39:56]} {[%emt 00:00:27]}
61. Nd5 {[%clk 00:02:39]} {[%emt 00:00:26]} Rc1 {[%clk 00:39:20]} {[%emt
00:01:05]} 62. Nb4 {[%clk 00:02:31]} {[%emt 00:00:38]} Bf4 {[%clk 00:39:25]}
{[%emt 00:00:25]} 63. Rxc1 {[%clk 00:02:35]} {[%emt 00:00:26]} Kxc1 {[%clk
00:39:49]} {[%emt 00:00:07]} 64. Kf1 {[%clk 00:02:45]} {[%emt 00:00:19]} Bd2
{[%clk 00:40:11]} {[%emt 00:00:08]} 0-1

[Event "Schack-SM 2022: Junior-SM"]
[Site "Fyrishov, Idrottsgatan 2, Uppsala, Sweden"]
[Date "2022.07.04"]
[Round "3.5"]
[White "Grahn, Vidar"]
[Black "Falkevall, Axel"]
[Result "0-1"]
[TimeControl "90 minutes for 40 moves + 30 minutes for the rest of the game + 30 seconds per move from move one."]
[BlackTitle "FM"]
[WhiteFideId "1744780"]
[BlackFideId "1735560"]
[WhiteElo "2003"]
[BlackElo "2275"]

1. e4 {[%clk 01:30:56]} {[%emt 00:00:03]} c5 {[%clk 01:30:51]} {[%emt
00:00:09]} 2. Nf3 {[%clk 01:31:20]} {[%emt 00:00:06]} d6 {[%clk 01:31:15]}
{[%emt 00:00:06]} 3. d4 {[%clk 01:31:38]} {[%emt 00:00:12]} cxd4 {[%clk
01:31:37]} {[%emt 00:00:08]} 4. Nxd4 {[%clk 01:32:05]} {[%emt 00:00:03]} Nf6
{[%clk 01:31:58]} {[%emt 00:00:09]} 5. Nc3 {[%clk 01:32:31]} {[%emt 00:00:04]}
a6 {[%clk 01:32:19]} {[%emt 00:00:09]} 6. Bc4 {[%clk 01:32:55]} {[%emt
00:00:06]} e6 {[%clk 01:32:34]} {[%emt 00:00:15]} 7. Bb3 {[%clk 01:33:21]}
{[%emt 00:00:05]} b5 {[%clk 01:32:37]} {[%emt 00:00:26]} 8. O-O {[%clk
01:33:31]} {[%emt 00:00:20]} Be7 {[%clk 01:32:47]} {[%emt 00:00:20]} 9. Qf3
{[%clk 01:33:40]} {[%emt 00:00:21]} Qb6 {[%clk 01:32:57]} {[%emt 00:00:20]} 10.
Be3 {[%clk 01:32:11]} {[%emt 00:01:59]} Qb7 {[%clk 01:32:44]} {[%emt 00:00:42]}
11. a3 {[%clk 01:29:30]} {[%emt 00:03:12]} Nbd7 {[%clk 01:27:49]} {[%emt
00:05:25]} 12. Rfe1 {[%clk 01:25:50]} {[%emt 00:04:09]} O-O {[%clk 01:25:28]}
{[%emt 00:02:52]} 13. Qg3 {[%clk 01:22:46]} {[%emt 00:03:35]} Kh8 {[%clk
01:22:22]} {[%emt 00:03:35]} 14. f3 {[%clk 01:21:35]} {[%emt 00:01:42]} Nb6
{[%clk 01:12:34]} {[%emt 00:10:17]} 15. a4 {[%clk 01:13:04]} {[%emt 00:09:01]}
b4 {[%clk 01:07:11]} {[%emt 00:05:53]} 16. Na2 {[%clk 01:07:05]} {[%emt
00:06:30]} d5 {[%clk 00:55:04]} {[%emt 00:12:37]} 17. e5 {[%clk 01:03:31]}
{[%emt 00:04:03]} Nfd7 {[%clk 00:51:28]} {[%emt 00:04:05]} 18. c3 {[%clk
00:54:59]} {[%emt 00:09:03]} bxc3 {[%clk 00:38:21]} {[%emt 00:13:37]} 19. bxc3
{[%clk 00:45:22]} {[%emt 00:10:08]} Nc4 {[%clk 00:35:07]} {[%emt 00:03:44]} 20.
Bg5 {[%clk 00:28:20]} {[%emt 00:17:31]} Nc5 {[%clk 00:26:53]} {[%emt 00:08:45]}
21. Bc2 {[%clk 00:25:52]} {[%emt 00:02:57]} Bxg5 {[%clk 00:24:09]} {[%emt
00:03:14]} 22. Qxg5 {[%clk 00:26:12]} {[%emt 00:00:10]} h6 {[%clk 00:21:51]}
{[%emt 00:02:48]} 23. Qh4 {[%clk 00:22:57]} {[%emt 00:03:44]} Bd7 {[%clk
00:19:02]} {[%emt 00:03:20]} 24. Nc1 {[%clk 00:13:00]} {[%emt 00:10:28]} Qc7
{[%clk 00:14:41]} {[%emt 00:04:51]} 25. f4 {[%clk 00:09:48]} {[%emt 00:03:41]}
Nd2 {[%clk 00:08:59]} {[%emt 00:06:12]} 26. Re3 {[%clk 00:04:50]} {[%emt
00:05:28]} Nce4 {[%clk 00:08:14]} {[%emt 00:01:15]} 27. Nce2 {[%clk 00:04:26]}
{[%emt 00:00:54]} f6 {[%clk 00:06:56]} {[%emt 00:01:47]} 28. Nf3 {[%clk
00:03:40]} {[%emt 00:01:17]} Nxf3+ {[%clk 00:06:13]} {[%emt 00:01:12]} 29. gxf3
{[%clk 00:03:51]} {[%emt 00:00:20]} Qc5 {[%clk 00:06:13]} {[%emt 00:00:30]} 30.
Nd4 {[%clk 00:04:03]} {[%emt 00:00:17]} Nxc3 {[%clk 00:06:17]} {[%emt
00:00:27]} 31. f5 {[%clk 00:03:47]} {[%emt 00:00:47]} fxe5 {[%clk 00:05:42]}
{[%emt 00:01:04]} 32. Rxe5 {[%clk 00:04:07]} {[%emt 00:00:10]} exf5 {[%clk
00:04:53]} {[%emt 00:01:20]} 33. Qf2 {[%clk 00:02:50]} {[%emt 00:01:46]} Rab8
{[%clk 00:03:51]} {[%emt 00:01:33]} 34. Bxf5 {[%clk 00:02:21]} {[%emt
00:00:58]} Bxf5 {[%clk 00:03:30]} {[%emt 00:00:51]} 35. Nxf5 {[%clk 00:02:46]}
{[%emt 00:00:06]} Qxf2+ {[%clk 00:03:01]} {[%emt 00:00:58]} 36. Kxf2 {[%clk
00:03:11]} {[%emt 00:00:05]} Rb2+ {[%clk 00:02:32]} {[%emt 00:00:59]} 37. Kg1
{[%clk 00:02:30]} {[%emt 00:01:10]} Re2 {[%clk 00:01:34]} {[%emt 00:01:29]} 38.
Rxe2 {[%clk 00:02:21]} {[%emt 00:00:39]} Nxe2+ {[%clk 00:02:02]} {[%emt
00:00:02]} 39. Kf2 {[%clk 00:02:34]} {[%emt 00:00:17]} Rxf5 {[%clk 00:02:14]}
{[%emt 00:00:18]} 40. Kxe2 {[%clk 00:02:59]} {[%emt 00:00:04]} Rh5 {[%clk
00:02:34]} {[%emt 00:00:11]} 41. Ke3 {[%clk 00:00:53]} {[%emt 00:02:36]} Rxh2
{[%clk 00:28:25]} {[%emt 00:04:39]} 42. Kd4 {[%clk 00:28:38]} {[%emt 00:02:46]}
Rd2+ {[%clk 00:25:17]} {[%emt 00:03:38]} 43. Kc5 {[%clk 00:28:07]} {[%emt
00:01:00]} d4 {[%clk 00:22:18]} {[%emt 00:03:29]} 44. Kb6 {[%clk 00:27:28]}
{[%emt 00:01:09]} d3 {[%clk 00:19:49]} {[%emt 00:02:59]} 45. Kxa6 {[%clk
00:23:14]} {[%emt 00:04:44]} Rb2 {[%clk 00:19:17]} {[%emt 00:01:02]} 46. a5
{[%clk 00:23:02]} {[%emt 00:00:43]} d2 {[%clk 00:17:43]} {[%emt 00:02:03]} 47.
Rd1 {[%clk 00:21:01]} {[%emt 00:02:31]} Kg8 {[%clk 00:16:00]} {[%emt 00:02:13]}
48. Ka7 {[%clk 00:20:41]} {[%emt 00:00:50]} Kf7 {[%clk 00:15:42]} {[%emt
00:00:48]} 49. a6 {[%clk 00:20:24]} {[%emt 00:00:48]} Ke6 {[%clk 00:14:43]}
{[%emt 00:01:28]} 50. Ka8 {[%clk 00:17:57]} {[%emt 00:02:57]} Kd5 {[%clk
00:13:00]} {[%emt 00:02:12]} 51. a7 {[%clk 00:18:14]} {[%emt 00:00:14]} Kd4
{[%clk 00:11:40]} {[%emt 00:01:50]} 52. f4 {[%clk 00:17:54]} {[%emt 00:00:50]}
Ra2 {[%clk 00:10:10]} {[%emt 00:02:00]} 53. Kb8 {[%clk 00:16:15]} {[%emt
00:02:10]} Kd3 {[%clk 00:09:28]} {[%emt 00:01:11]} 54. Rg1 {[%clk 00:15:58]}
{[%emt 00:00:47]} Kc2 {[%clk 00:09:12]} {[%emt 00:00:46]} 55. Rg2 {[%clk
00:15:34]} {[%emt 00:00:54]} Kc1 {[%clk 00:09:01]} {[%emt 00:00:40]} 56. f5
{[%clk 00:15:39]} {[%emt 00:00:25]} d1=Q {[%clk 00:08:44]} {[%emt 00:00:47]} 57.
Rxa2 {[%clk 00:16:05]} {[%emt 00:00:05]} Qb3+ {[%clk 00:09:05]} {[%emt
00:00:09]} 0-1

[Event "Schack-SM 2022: Junior-SM"]
[Site "Fyrishov, Idrottsgatan 2, Uppsala, Sweden"]
[Date "2022.07.03"]
[Round "2.1"]
[White "Ostlund, Joar"]
[Black "Wernberg, Hugo"]
[Result "1/2-1/2"]
[TimeControl "90 minutes for 40 moves + 30 minutes for the rest of the game + 30 seconds per move from move one."]
[WhiteTitle "CM"]
[BlackTitle "FM"]
[WhiteFideId "1735020"]
[BlackFideId "1737511"]
[WhiteElo "2222"]
[BlackElo "2316"]

1. d4 {[%clk 01:30:57]} {[%emt 00:00:03]} d5 {[%clk 01:30:57]} {[%emt
00:00:04]} 2. Nf3 {[%clk 01:31:18]} {[%emt 00:00:08]} Nf6 {[%clk 01:31:21]}
{[%emt 00:00:07]} 3. c4 {[%clk 01:31:37]} {[%emt 00:00:10]} e6 {[%clk
01:31:46]} {[%emt 00:00:06]} 4. Nc3 {[%clk 01:31:58]} {[%emt 00:00:08]} Be7
{[%clk 01:32:10]} {[%emt 00:00:07]} 5. Bf4 {[%clk 01:32:04]} {[%emt 00:00:23]}
O-O {[%clk 01:32:28]} {[%emt 00:00:12]} 6. e3 {[%clk 01:32:21]} {[%emt
00:00:13]} Nbd7 {[%clk 01:32:48]} {[%emt 00:00:11]} 7. c5 {[%clk 01:31:44]}
{[%emt 00:01:07]} Nh5 {[%clk 01:33:03]} {[%emt 00:00:15]} 8. Bd3 {[%clk
01:32:02]} {[%emt 00:00:11]} Nxf4 {[%clk 01:33:26]} {[%emt 00:00:08]} 9. exf4
{[%clk 01:32:27]} {[%emt 00:00:05]} b6 {[%clk 01:33:45]} {[%emt 00:00:11]} 10.
b4 {[%clk 01:32:43]} {[%emt 00:00:14]} a5 {[%clk 01:34:05]} {[%emt 00:00:10]}
11. a3 {[%clk 01:32:44]} {[%emt 00:00:28]} c6 {[%clk 01:34:23]} {[%emt
00:00:13]} 12. O-O {[%clk 01:32:57]} {[%emt 00:00:16]} Ba6 {[%clk 01:34:27]}
{[%emt 00:00:26]} 13. Bxa6 {[%clk 01:32:20]} {[%emt 00:01:07]} Rxa6 {[%clk
01:34:42]} {[%emt 00:00:16]} 14. Qe2 {[%clk 01:32:38]} {[%emt 00:00:12]} Qa8
{[%clk 01:34:44]} {[%emt 00:00:28]} 15. Rab1 {[%clk 01:27:04]} {[%emt
00:06:03]} axb4 {[%clk 01:20:06]} {[%emt 00:15:08]} 16. axb4 {[%clk 01:26:08]}
{[%emt 00:01:26]} Ra3 {[%clk 01:08:14]} {[%emt 00:12:23]} 17. Rfc1 {[%clk
01:06:48]} {[%emt 00:19:49]} Bf6 {[%clk 00:56:28]} {[%emt 00:12:16]} 18. Qd2
{[%clk 01:00:15]} {[%emt 00:07:03]} bxc5 {[%clk 00:36:30]} {[%emt 00:20:28]} 19.
bxc5 {[%clk 01:00:16]} {[%emt 00:00:29]} Rb8 {[%clk 00:34:56]} {[%emt
00:02:04]} 20. Ne5 {[%clk 00:55:15]} {[%emt 00:05:31]} Nxe5 {[%clk 00:30:31]}
{[%emt 00:04:55]} 21. fxe5 {[%clk 00:55:33]} {[%emt 00:00:12]} Bd8 {[%clk
00:30:26]} {[%emt 00:00:35]} 22. Rxb8 {[%clk 00:25:16]} {[%emt 00:30:47]} Qxb8
{[%clk 00:30:36]} {[%emt 00:00:21]} 23. Rb1 {[%clk 00:25:01]} {[%emt 00:00:45]}
Qa8 {[%clk 00:23:42]} {[%emt 00:07:24]} 24. Qb2 {[%clk 00:20:26]} {[%emt
00:05:05]} Kf8 {[%clk 00:22:08]} {[%emt 00:02:04]} 25. g3 {[%clk 00:19:59]}
{[%emt 00:00:57]} Ke8 {[%clk 00:20:51]} {[%emt 00:01:47]} 26. Kg2 {[%clk
00:16:21]} {[%emt 00:04:08]} Qa5 {[%clk 00:15:56]} {[%emt 00:05:25]} 27. Qb7
{[%clk 00:15:07]} {[%emt 00:01:43]} Qc7 {[%clk 00:15:45]} {[%emt 00:00:42]} 28.
Qb2 {[%clk 00:15:03]} {[%emt 00:00:34]} Qa7 {[%clk 00:15:12]} {[%emt 00:01:02]}
29. Qb4 {[%clk 00:13:46]} {[%emt 00:01:47]} Ra5 {[%clk 00:14:36]} {[%emt
00:01:06]} 30. Qb3 {[%clk 00:10:19]} {[%emt 00:03:56]} Ra3 {[%clk 00:13:08]}
{[%emt 00:01:59]} 31. Qb2 {[%clk 00:10:04]} {[%emt 00:00:44]} Qa6 {[%clk
00:11:20]} {[%emt 00:02:20]} 32. Qb4 {[%clk 00:08:54]} {[%emt 00:01:39]} Bc7
{[%clk 00:10:15]} {[%emt 00:01:36]} 33. Rb3 {[%clk 00:07:14]} {[%emt 00:02:10]}
Ra1 {[%clk 00:09:45]} {[%emt 00:00:59]} 34. Rb1 {[%clk 00:07:03]} {[%emt
00:00:41]} Ra3 {[%clk 00:09:15]} {[%emt 00:01:01]} 35. Rb3 {[%clk 00:07:23]}
{[%emt 00:00:10]} Ra5 {[%clk 00:09:15]} {[%emt 00:00:30]} 36. Rb2 {[%clk
00:06:29]} {[%emt 00:01:23]} Kd7 {[%clk 00:08:59]} {[%emt 00:00:46]} 37. Ne2
{[%clk 00:05:48]} {[%emt 00:01:12]} Qd3 {[%clk 00:04:53]} {[%emt 00:04:36]} 38.
Qd2 {[%clk 00:03:07]} {[%emt 00:03:11]} Qxd2 {[%clk 00:04:18]} {[%emt
00:01:05]} 1/2-1/2